{"text_format":"3","workbook":"xlsx","n_sheets":1,"sheets":["Kirjan lainaus kirjastosta"],"not_rendered":{"defined_names":4},"read":"whole","date_system":"1900"}

{"sheet":"Kirjan lainaus kirjastosta","index":0,"n_rows":9,"n_cols":8,"rows_kept":9,"merged":[[0,1,0,4],[0,5,0,6]]}
[null,"Kirjaston kirjan lainausarkki",{"$nulls":3},"PÄIVIÄ ENNEN MYÖHÄSTYMISTÄ: ",null,10]
["Vanhentunut","OPISKELIJA","YHTEYSHENKILÖN SÄHKÖPOSTI","YHTEYSHENKILÖN PUHELINNUMERO","KIRJAN NIMI","LAINAUSPÄIVÄ","PALAUTUSPÄIVÄ","PÄIVIÄ"]
[{"$f":"IFERROR(((Kirjat[[#This Row],[LAINAUSPÄIVÄ]]+PäiviäSallittu)<TODAY())*(LEN(Kirjat[[#This Row],[PALAUTUSPÄIVÄ]])=0)*(LEN(Kirjat[[#This Row],[LAINAUSPÄIVÄ]])>0),0)","v":0},"Maria Korhonen","joku@example.com","555-0100","Pieni talo preerialla",{"$f":"DATE(YEAR(TODAY()),1,14)","v":"2018-01-14"},{"$f":"DATE(YEAR(TODAY()),1,21)","v":"2018-01-21"},{"$f":"IFERROR(IF(Kirjat[[#This Row],[PALAUTUSPÄIVÄ]]=\"\",IF(Kirjat[[#This Row],[LAINAUSPÄIVÄ]]<>\"\", TODAY()-Kirjat[[#This Row],[LAINAUSPÄIVÄ]],\"\"),Kirjat[[#This Row],[PALAUTUSPÄIVÄ]]-Kirjat[[#This Row],[LAINAUSPÄIVÄ]]), \"\")","v":7}]
[{"$f":"IFERROR(((Kirjat[[#This Row],[LAINAUSPÄIVÄ]]+PäiviäSallittu)<TODAY())*(LEN(Kirjat[[#This Row],[PALAUTUSPÄIVÄ]])=0)*(LEN(Kirjat[[#This Row],[LAINAUSPÄIVÄ]])>0),0)","v":0},"Tapani Tarvonen","joku@example.com","555-0101","Lotta ystäväni",{"$f":"DATE(YEAR(TODAY()),2,15)","v":"2018-02-15"},{"$f":"DATE(YEAR(TODAY()),2,18)","v":"2018-02-18"},{"$f":"IFERROR(IF(Kirjat[[#This Row],[PALAUTUSPÄIVÄ]]=\"\",IF(Kirjat[[#This Row],[LAINAUSPÄIVÄ]]<>\"\", TODAY()-Kirjat[[#This Row],[LAINAUSPÄIVÄ]],\"\"),Kirjat[[#This Row],[PALAUTUSPÄIVÄ]]-Kirjat[[#This Row],[LAINAUSPÄIVÄ]]), \"\")","v":3}]
[{"$f":"IFERROR(((Kirjat[[#This Row],[LAINAUSPÄIVÄ]]+PäiviäSallittu)<TODAY())*(LEN(Kirjat[[#This Row],[PALAUTUSPÄIVÄ]])=0)*(LEN(Kirjat[[#This Row],[LAINAUSPÄIVÄ]])>0),0)","v":0},"Kaarlo Makkonen","joku@example.com","555-0102","Aavepoika Aapeli ja mörkölinna",{"$f":"DATE(YEAR(TODAY()),2,17)","v":"2018-02-17"},{"$f":"DATE(YEAR(TODAY()),2,22)","v":"2018-02-22"},{"$f":"IFERROR(IF(Kirjat[[#This Row],[PALAUTUSPÄIVÄ]]=\"\",IF(Kirjat[[#This Row],[LAINAUSPÄIVÄ]]<>\"\", TODAY()-Kirjat[[#This Row],[LAINAUSPÄIVÄ]],\"\"),Kirjat[[#This Row],[PALAUTUSPÄIVÄ]]-Kirjat[[#This Row],[LAINAUSPÄIVÄ]]), \"\")","v":5}]
[{"$f":"IFERROR(((Kirjat[[#This Row],[LAINAUSPÄIVÄ]]+PäiviäSallittu)<TODAY())*(LEN(Kirjat[[#This Row],[PALAUTUSPÄIVÄ]])=0)*(LEN(Kirjat[[#This Row],[LAINAUSPÄIVÄ]])>0),0)","v":0},"Miika Hallberg","joku@example.com","555-0103","Hiirirouva ja ruusupensaan viisaat",{"$f":"DATE(YEAR(TODAY()),2,17)","v":"2018-02-17"},{"$f":"DATE(YEAR(TODAY()),2,25)","v":"2018-02-25"},{"$f":"IFERROR(IF(Kirjat[[#This Row],[PALAUTUSPÄIVÄ]]=\"\",IF(Kirjat[[#This Row],[LAINAUSPÄIVÄ]]<>\"\", TODAY()-Kirjat[[#This Row],[LAINAUSPÄIVÄ]],\"\"),Kirjat[[#This Row],[PALAUTUSPÄIVÄ]]-Kirjat[[#This Row],[LAINAUSPÄIVÄ]]), \"\")","v":8}]
[{"$f":"IFERROR(((Kirjat[[#This Row],[LAINAUSPÄIVÄ]]+PäiviäSallittu)<TODAY())*(LEN(Kirjat[[#This Row],[PALAUTUSPÄIVÄ]])=0)*(LEN(Kirjat[[#This Row],[LAINAUSPÄIVÄ]])>0),0)","v":0},"Karita Hasu","joku@example.com","555-0104","Matilda",{"$f":"DATE(YEAR(TODAY()),2,18)","v":"2018-02-18"},{"$f":"DATE(YEAR(TODAY()),2,28)","v":"2018-02-28"},{"$f":"IFERROR(IF(Kirjat[[#This Row],[PALAUTUSPÄIVÄ]]=\"\",IF(Kirjat[[#This Row],[LAINAUSPÄIVÄ]]<>\"\", TODAY()-Kirjat[[#This Row],[LAINAUSPÄIVÄ]],\"\"),Kirjat[[#This Row],[PALAUTUSPÄIVÄ]]-Kirjat[[#This Row],[LAINAUSPÄIVÄ]]), \"\")","v":10}]
[{"$f":"IFERROR(((Kirjat[[#This Row],[LAINAUSPÄIVÄ]]+PäiviäSallittu)<TODAY())*(LEN(Kirjat[[#This Row],[PALAUTUSPÄIVÄ]])=0)*(LEN(Kirjat[[#This Row],[LAINAUSPÄIVÄ]])>0),0)","v":1},"Melissa Koponen","joku@example.com","555-0105","Narnian tarinat",{"$f":"DATE(YEAR(TODAY()),1,23)","v":"2018-01-23"},null,{"$f":"IFERROR(IF(Kirjat[[#This Row],[PALAUTUSPÄIVÄ]]=\"\",IF(Kirjat[[#This Row],[LAINAUSPÄIVÄ]]<>\"\", TODAY()-Kirjat[[#This Row],[LAINAUSPÄIVÄ]],\"\"),Kirjat[[#This Row],[PALAUTUSPÄIVÄ]]-Kirjat[[#This Row],[LAINAUSPÄIVÄ]]), \"\")","v":162}]
[{"$f":"IFERROR(((Kirjat[[#This Row],[LAINAUSPÄIVÄ]]+PäiviäSallittu)<TODAY())*(LEN(Kirjat[[#This Row],[PALAUTUSPÄIVÄ]])=0)*(LEN(Kirjat[[#This Row],[LAINAUSPÄIVÄ]])>0),0)","v":0},"Sari Salava","joku@example.com","555-0106","Rastaslammen noita",{"$f":"TODAY()","v":"2018-07-04"},null,{"$f":"IFERROR(IF(Kirjat[[#This Row],[PALAUTUSPÄIVÄ]]=\"\",IF(Kirjat[[#This Row],[LAINAUSPÄIVÄ]]<>\"\", TODAY()-Kirjat[[#This Row],[LAINAUSPÄIVÄ]],\"\"),Kirjat[[#This Row],[PALAUTUSPÄIVÄ]]-Kirjat[[#This Row],[LAINAUSPÄIVÄ]]), \"\")","v":0}]